[Event "*** Titled Tuesday Blitz"]
[Site "Chess.com"]
[Date "2020.11.24"]
[Round "8"]
[White "JulAnt"]
[Black "BlackGod93"]
[Result "0-1"]
[WhiteElo "2438"]
[BlackElo "2282"]
[TimeControl "180+1"]
[EndTime "11:43:20 PST"]
[Termination "BlackGod93 won by resignation"]

1. e4 {[%clk 0:03:00.9]} 1... e5 {[%clk 0:02:59.9]} 2. Nf3 {[%clk 0:03:00.2]}
2... Nc6 {[%clk 0:03:00.1]} 3. Bb5 {[%clk 0:03:00.2]} 3... a6 {[%clk 0:03:00.2]}
4. Ba4 {[%clk 0:03:00.5]} 4... Nf6 {[%clk 0:03:00.6]} 5. O-O {[%clk 0:03:00.2]}
5... Nxe4 {[%clk 0:02:59.1]} 6. d4 {[%clk 0:02:59.8]} 6... b5 {[%clk 0:02:59.5]}
7. Bb3 {[%clk 0:02:59.6]} 7... d5 {[%clk 0:03:00]} 8. dxe5 {[%clk 0:02:59.9]}
8... Be6 {[%clk 0:03:00.5]} 9. c3 {[%clk 0:02:58.7]} 9... Bc5 {[%clk 0:03:00.3]}
10. Qe2 {[%clk 0:02:55.9]} 10... O-O {[%clk 0:03:00.1]} 11. Be3 {[%clk
0:02:56.2]} 11... Bg4 {[%clk 0:02:51.5]} 12. Bxc5 {[%clk 0:02:46.2]} 12... Nxc5
{[%clk 0:02:47.3]} 13. Qe3 {[%clk 0:02:46.5]} 13... Nxb3 {[%clk 0:02:41]} 14.
axb3 {[%clk 0:02:46.4]} 14... Bxf3 {[%clk 0:02:41.5]} 15. gxf3 {[%clk
0:02:45.9]} 15... d4 {[%clk 0:02:37.8]} 16. cxd4 {[%clk 0:02:45]} 16... Qxd4
{[%clk 0:02:38.7]} 17. f4 {[%clk 0:02:31.4]} 17... Qxb2 {[%clk 0:02:35.9]} 18.
Nd2 {[%clk 0:02:29.5]} 18... Nd4 {[%clk 0:02:31.4]} 19. Kh1 {[%clk 0:02:25.9]}
19... Nc2 {[%clk 0:02:30]} 20. Rab1 {[%clk 0:01:34.3]} 20... Nxe3 {[%clk
0:02:25.2]} 21. Rxb2 {[%clk 0:01:33.1]} 21... Nxf1 {[%clk 0:02:25.6]} 22. Nxf1
{[%clk 0:01:33.2]} 22... c5 {[%clk 0:02:24.3]} 23. Rc2 {[%clk 0:01:33.2]} 23...
Rfc8 {[%clk 0:02:24.3]} 24. Ne3 {[%clk 0:01:33.6]} 24... a5 {[%clk 0:02:24.6]}
25. Nd5 {[%clk 0:01:33.6]} 25... Ra7 {[%clk 0:02:21.2]} 26. f5 {[%clk
0:01:27.9]} 26... a4 {[%clk 0:02:18]} 27. bxa4 {[%clk 0:01:27.8]} 27... bxa4
{[%clk 0:02:18.9]} 28. e6 {[%clk 0:01:28.3]} 28... fxe6 {[%clk 0:02:18.7]} 29.
fxe6 {[%clk 0:01:28.3]} 29... Kf8 {[%clk 0:02:17.5]} 30. Rc4 {[%clk 0:01:24.4]}
30... a3 {[%clk 0:02:15.9]} 31. e7+ {[%clk 0:01:24.5]} 31... Ke8 {[%clk
0:02:16.2]} 32. Rf4 {[%clk 0:01:24.3]} 32... Rxe7 {[%clk 0:02:13.8]} 33. Nxe7
{[%clk 0:01:23.6]} 33... Kxe7 {[%clk 0:02:14.7]} 34. Ra4 {[%clk 0:01:23.8]}
34... c4 {[%clk 0:02:15.2]} 35. Rxa3 {[%clk 0:01:16.9]} 35... c3 {[%clk
0:02:15.5]} 36. Ra1 {[%clk 0:01:17.2]} 36... c2 {[%clk 0:02:08.6]} 37. Rc1
{[%clk 0:01:16.5]} 37... Ke6 {[%clk 0:02:09.1]} 38. Kg1 {[%clk 0:01:12.1]} 38...
Kd5 {[%clk 0:02:09.4]} 39. Kf1 {[%clk 0:01:12.6]} 39... Kd4 {[%clk 0:02:10]} 40.
Ke2 {[%clk 0:01:12.9]} 40... Kc3 {[%clk 0:02:10]} 0-1

[Event "*** Titled Tuesday Blitz"]
[Site "Chess.com"]
[Date "2020.11.24"]
[Round "8"]
[White "zaur-mammadov"]
[Black "TrickyFortem"]
[Result "0-1"]
[WhiteElo "2646"]
[BlackElo "2513"]
[TimeControl "180+1"]
[EndTime "11:43:24 PST"]
[Termination "TrickyFortem won by resignation"]

1. e4 {[%clk 0:03:00.9]} 1... c5 {[%clk 0:02:52.3]} 2. c3 {[%clk 0:03:00.8]}
2... d5 {[%clk 0:02:51.8]} 3. exd5 {[%clk 0:03:01.1]} 3... Qxd5 {[%clk
0:02:52.7]} 4. d4 {[%clk 0:03:01.4]} 4... Nf6 {[%clk 0:02:51.6]} 5. Nf3 {[%clk
0:03:01.9]} 5... Bg4 {[%clk 0:02:49.5]} 6. Nbd2 {[%clk 0:03:02]} 6... Nc6 {[%clk
0:02:47.1]} 7. Bc4 {[%clk 0:03:02]} 7... Qd6 {[%clk 0:02:45.5]} 8. Qb3 {[%clk
0:03:01.4]} 8... e6 {[%clk 0:02:44.6]} 9. Qxb7 {[%clk 0:02:51.1]} 9... Rb8
{[%clk 0:02:44.6]} 10. Qa6 {[%clk 0:02:51.2]} 10... cxd4 {[%clk 0:02:39.2]} 11.
Bb5 {[%clk 0:02:47.1]} 11... Rb6 {[%clk 0:02:39.3]} 12. Qc8+ {[%clk 0:02:40.4]}
12... Ke7 {[%clk 0:02:39.4]} 13. Nc4 {[%clk 0:02:34.1]} 13... Qc5 {[%clk
0:02:12.9]} 14. Nxb6 {[%clk 0:02:18.7]} 14... Qxb5 {[%clk 0:02:13.2]} 15. Qb7+
{[%clk 0:01:37.2]} 15... Kd8 {[%clk 0:02:07.9]} 16. Qc8+ {[%clk 0:01:21]} 16...
Ke7 {[%clk 0:02:07.5]} 17. Qc7+ {[%clk 0:01:21.4]} 17... Ke8 {[%clk 0:02:07.5]}
18. Nc8 {[%clk 0:01:21]} 18... Bxf3 {[%clk 0:02:00.4]} 19. gxf3 {[%clk
0:01:20.6]} 19... dxc3 {[%clk 0:01:54.6]} 20. bxc3 {[%clk 0:01:18.4]} 20... Nd5
{[%clk 0:01:47.1]} 21. Nd6+ {[%clk 0:00:58.7]} 21... Bxd6 {[%clk 0:01:46.1]} 22.
Qxd6 {[%clk 0:00:59.5]} 22... Nxc3 {[%clk 0:01:44.6]} 23. Qd2 {[%clk 0:00:59]}
23... Nd4 {[%clk 0:01:39.6]} 0-1

[Event "*** Titled Tuesday Blitz"]
[Site "Chess.com"]
[Date "2020.11.24"]
[Round "8"]
[White "boasovietica"]
[Black "poneis_malditos"]
[Result "1-0"]
[WhiteElo "2421"]
[BlackElo "2295"]
[TimeControl "180+1"]
[EndTime "11:43:26 PST"]
[Termination "boasovietica won by checkmate"]

1. e4 {[%clk 0:03:00.9]} 1... c5 {[%clk 0:03:00.1]} 2. Nf3 {[%clk 0:03:00.7]}
2... e6 {[%clk 0:02:59.9]} 3. Nc3 {[%clk 0:03:00]} 3... a6 {[%clk 0:02:59.7]} 4.
g3 {[%clk 0:03:00.3]} 4... b5 {[%clk 0:02:59.7]} 5. Bg2 {[%clk 0:03:00.5]} 5...
Bb7 {[%clk 0:03:00.4]} 6. d3 {[%clk 0:03:00.9]} 6... d5 {[%clk 0:03:00.7]} 7.
O-O {[%clk 0:03:00.7]} 7... d4 {[%clk 0:03:00.8]} 8. Ne2 {[%clk 0:02:57.5]} 8...
Nc6 {[%clk 0:03:00.8]} 9. Ne1 {[%clk 0:02:57.2]} 9... h5 {[%clk 0:02:57.3]} 10.
h3 {[%clk 0:02:56.8]} 10... h4 {[%clk 0:02:55.3]} 11. g4 {[%clk 0:02:56.8]}
11... g6 {[%clk 0:02:55.1]} 12. f4 {[%clk 0:02:56.6]} 12... f5 {[%clk
0:02:55.3]} 13. exf5 {[%clk 0:02:40.3]} 13... exf5 {[%clk 0:02:50.2]} 14. gxf5
{[%clk 0:02:28.8]} 14... gxf5 {[%clk 0:02:50.2]} 15. Kh2 {[%clk 0:02:25.5]}
15... Qc7 {[%clk 0:02:49]} 16. a4 {[%clk 0:02:19.9]} 16... b4 {[%clk 0:02:49]}
17. c3 {[%clk 0:02:20.3]} 17... O-O-O {[%clk 0:02:46.7]} 18. cxd4 {[%clk
0:02:20.3]} 18... Nxd4 {[%clk 0:02:45.8]} 19. Nxd4 {[%clk 0:02:20.3]} 19... Rxd4
{[%clk 0:02:45.7]} 20. Be3 {[%clk 0:02:17.2]} 20... Rd7 {[%clk 0:02:40.7]} 21.
Rc1 {[%clk 0:02:12.6]} 21... Bxg2 {[%clk 0:02:35.8]} 22. Nxg2 {[%clk 0:02:11.1]}
22... Nf6 {[%clk 0:02:34.4]} 23. Qc2 {[%clk 0:02:06.7]} 23... Kb8 {[%clk
0:02:14.6]} 24. Bxc5 {[%clk 0:01:50.7]} 24... Bxc5 {[%clk 0:02:14.5]} 25. Qxc5
{[%clk 0:01:51.6]} 25... Qxc5 {[%clk 0:02:15.4]} 26. Rxc5 {[%clk 0:01:52.2]}
26... Rxd3 {[%clk 0:02:16.3]} 27. Rxf5 {[%clk 0:01:52.2]} 27... Ne4 {[%clk
0:02:14.4]} 28. Re1 {[%clk 0:01:46.4]} 28... Ng3 {[%clk 0:02:10.8]} 29. Rf7
{[%clk 0:01:46.3]} 29... Rd2 {[%clk 0:02:05.1]} 30. Rg7 {[%clk 0:01:23.6]} 30...
Rxb2 {[%clk 0:01:43.2]} 31. Ree7 {[%clk 0:01:23.2]} 31... Rd8 {[%clk 0:01:32.8]}
32. Rb7+ {[%clk 0:01:14.6]} 32... Kc8 {[%clk 0:01:31.8]} 33. Rgc7# {[%clk
0:01:13.8]} 1-0

[Event "*** Titled Tuesday Blitz"]
[Site "Chess.com"]
[Date "2020.11.24"]
[Round "8"]
[White "A-S-00"]
[Black "GMaka"]
[Result "0-1"]
[WhiteElo "2302"]
[BlackElo "2427"]
[TimeControl "180+1"]
[EndTime "11:43:33 PST"]
[Termination "GMaka won by resignation"]

1. e4 {[%clk 0:02:59.8]} 1... e5 {[%clk 0:02:58.9]} 2. Nf3 {[%clk 0:02:59.7]}
2... Nf6 {[%clk 0:02:58]} 3. d3 {[%clk 0:02:50.7]} 3... Nc6 {[%clk 0:02:56.5]}
4. g3 {[%clk 0:02:49.8]} 4... Bc5 {[%clk 0:02:56.1]} 5. Bg2 {[%clk 0:02:49.7]}
5... O-O {[%clk 0:02:56]} 6. O-O {[%clk 0:02:49.8]} 6... d6 {[%clk 0:02:55.7]}
7. c3 {[%clk 0:02:47.7]} 7... Bg4 {[%clk 0:02:53.4]} 8. h3 {[%clk 0:02:47.6]}
8... Bh5 {[%clk 0:02:53.7]} 9. b4 {[%clk 0:02:43.4]} 9... Bb6 {[%clk 0:02:52.9]}
10. Bb2 {[%clk 0:02:43.6]} 10... a6 {[%clk 0:02:37.5]} 11. a4 {[%clk 0:02:35.7]}
11... d5 {[%clk 0:02:19.5]} 12. exd5 {[%clk 0:02:20.2]} 12... Nxd5 {[%clk
0:02:16.7]} 13. Nbd2 {[%clk 0:02:18.9]} 13... Re8 {[%clk 0:02:07.8]} 14. Qb3
{[%clk 0:01:42.2]} 14... Nde7 {[%clk 0:01:42.6]} 15. Nc4 {[%clk 0:00:50]} 15...
Bxf3 {[%clk 0:01:36.3]} 16. Bxf3 {[%clk 0:00:49]} 16... Qxd3 {[%clk 0:01:36.9]}
17. Bd1 {[%clk 0:00:37]} 17... Qxg3+ {[%clk 0:01:35]} 0-1

[Event "*** Titled Tuesday Blitz"]
[Site "Chess.com"]
[Date "2020.11.24"]
[Round "8"]
[White "GMJustin"]
[Black "djano"]
[Result "0-1"]
[WhiteElo "2284"]
[BlackElo "2463"]
[TimeControl "180+1"]
[EndTime "11:43:41 PST"]
[Termination "djano won on time"]

1. e4 {[%clk 0:02:42.8]} 1... c5 {[%clk 0:02:59.4]} 2. Nf3 {[%clk 0:02:40.1]}
2... e6 {[%clk 0:02:59.6]} 3. d4 {[%clk 0:02:39.1]} 3... cxd4 {[%clk 0:03:00.5]}
4. Nxd4 {[%clk 0:02:39.3]} 4... a6 {[%clk 0:03:01]} 5. Be2 {[%clk 0:02:37.2]}
5... g6 {[%clk 0:03:01]} 6. O-O {[%clk 0:02:25.1]} 6... Bg7 {[%clk 0:03:01.2]}
7. c4 {[%clk 0:02:18.2]} 7... Ne7 {[%clk 0:02:58.7]} 8. Nc3 {[%clk 0:02:12]}
8... Nbc6 {[%clk 0:02:58.6]} 9. Nc2 {[%clk 0:02:09]} 9... O-O {[%clk 0:02:57.8]}
10. Bf4 {[%clk 0:01:06.2]} 10... f5 {[%clk 0:02:49.5]} 11. Bd6 {[%clk 0:01:04]}
11... fxe4 {[%clk 0:02:36.7]} 12. Nxe4 {[%clk 0:01:03.1]} 12... Bxb2 {[%clk
0:02:35.1]} 13. Rb1 {[%clk 0:01:02.8]} 13... Be5 {[%clk 0:02:31.5]} 14. c5
{[%clk 0:00:53.8]} 14... Nf5 {[%clk 0:02:29.5]} 15. Bxe5 {[%clk 0:00:49.3]}
15... Nxe5 {[%clk 0:02:28.7]} 16. f4 {[%clk 0:00:43.9]} 16... Nf7 {[%clk
0:02:20.2]} 17. Qd2 {[%clk 0:00:38.6]} 17... d5 {[%clk 0:02:18.1]} 18. cxd6
{[%clk 0:00:36.8]} 18... N5xd6 {[%clk 0:02:18.2]} 19. Nxd6 {[%clk 0:00:19.5]}
19... Qxd6 {[%clk 0:02:19.1]} 20. Qe3 {[%clk 0:00:15.7]} 20... b5 {[%clk
0:02:13.3]} 21. Bf3 {[%clk 0:00:05.9]} 21... Rb8 {[%clk 0:02:13.1]} 22. Rfd1
{[%clk 0:00:05.7]} 22... Qc7 {[%clk 0:02:12.8]} 23. Nd4 {[%clk 0:00:04.3]} 23...
e5 {[%clk 0:02:06.7]} 0-1

[Event "*** Titled Tuesday Blitz"]
[Site "Chess.com"]
[Date "2020.11.24"]
[Round "8"]
[White "MF1966Idrisov"]
[Black "ashookk"]
[Result "1-0"]
[WhiteElo "2398"]
[BlackElo "2252"]
[TimeControl "180+1"]
[EndTime "11:43:52 PST"]
[Termination "MF1966Idrisov won by resignation"]

1. Nf3 {[%clk 0:03:00.9]} 1... Nf6 {[%clk 0:02:43.6]} 2. b3 {[%clk 0:03:00]}
2... d5 {[%clk 0:02:41.6]} 3. Bb2 {[%clk 0:03:00]} 3... c6 {[%clk 0:02:42.4]} 4.
e3 {[%clk 0:03:00.5]} 4... Bg4 {[%clk 0:02:42.9]} 5. d4 {[%clk 0:03:01.1]} 5...
Nbd7 {[%clk 0:02:43.4]} 6. Be2 {[%clk 0:03:00.8]} 6... e6 {[%clk 0:02:44]} 7.
O-O {[%clk 0:03:00.7]} 7... a5 {[%clk 0:02:44.6]} 8. a3 {[%clk 0:02:58.7]} 8...
Be7 {[%clk 0:02:44.2]} 9. Ne5 {[%clk 0:02:58.1]} 9... Bxe2 {[%clk 0:02:42.7]}
10. Qxe2 {[%clk 0:02:57.5]} 10... Nxe5 {[%clk 0:02:43.2]} 11. dxe5 {[%clk
0:02:57.6]} 11... Nd7 {[%clk 0:02:44.1]} 12. f4 {[%clk 0:02:56.7]} 12... O-O
{[%clk 0:02:43.3]} 13. Nd2 {[%clk 0:02:51]} 13... f6 {[%clk 0:02:43.8]} 14. Qg4
{[%clk 0:02:44.9]} 14... f5 {[%clk 0:02:42.2]} 15. Qe2 {[%clk 0:02:44.7]} 15...
Nc5 {[%clk 0:02:40.9]} 16. Bd4 {[%clk 0:02:43.4]} 16... Ne4 {[%clk 0:02:39.4]}
17. Nxe4 {[%clk 0:02:43.1]} 17... dxe4 {[%clk 0:02:34.8]} 18. Rfd1 {[%clk
0:02:38.5]} 18... Qc8 {[%clk 0:02:17.7]} 19. Qc4 {[%clk 0:02:17.8]} 19... b5
{[%clk 0:02:12.4]} 20. Qe2 {[%clk 0:02:17.5]} 20... Qb7 {[%clk 0:02:04.5]} 21.
a4 {[%clk 0:02:14.1]} 21... Rad8 {[%clk 0:01:55.6]} 22. axb5 {[%clk 0:02:11.6]}
22... Qxb5 {[%clk 0:01:26.1]} 23. Qxb5 {[%clk 0:02:10.5]} 23... cxb5 {[%clk
0:01:27]} 24. Rxa5 {[%clk 0:02:10.2]} 24... Rd5 {[%clk 0:01:27.3]} 25. Rda1
{[%clk 0:01:49.6]} 25... b4 {[%clk 0:00:31.7]} 26. Rxd5 {[%clk 0:01:41.2]} 26...
exd5 {[%clk 0:00:31.6]} 27. Ra7 {[%clk 0:01:40.6]} 1-0

[Event "*** Titled Tuesday Blitz"]
[Site "Chess.com"]
[Date "2020.11.24"]
[Round "8"]
[White "No_t_ime_to_die"]
[Black "VladimirBugayev"]
[Result "1-0"]
[WhiteElo "2427"]
[BlackElo "2308"]
[TimeControl "180+1"]
[EndTime "11:43:58 PST"]
[Termination "No_t_ime_to_die won by resignation"]

1. e4 {[%clk 0:03:00.9]} 1... c5 {[%clk 0:02:59.3]} 2. Nf3 {[%clk 0:03:00.8]}
2... g6 {[%clk 0:02:56.1]} 3. d4 {[%clk 0:03:01.7]} 3... cxd4 {[%clk 0:02:55]}
4. Nxd4 {[%clk 0:03:02.6]} 4... Bg7 {[%clk 0:02:54.9]} 5. Nc3 {[%clk 0:03:03.3]}
5... Nc6 {[%clk 0:02:55.2]} 6. Be3 {[%clk 0:03:03]} 6... Nf6 {[%clk 0:02:51]} 7.
Bc4 {[%clk 0:03:00.6]} 7... O-O {[%clk 0:02:48.8]} 8. Bb3 {[%clk 0:03:00.3]}
8... d6 {[%clk 0:02:43.1]} 9. f3 {[%clk 0:02:58.9]} 9... a6 {[%clk 0:02:25.3]}
10. Qd2 {[%clk 0:02:58.3]} 10... Bd7 {[%clk 0:02:25.5]} 11. O-O-O {[%clk
0:02:57.5]} 11... Rc8 {[%clk 0:02:25.9]} 12. Kb1 {[%clk 0:02:49.5]} 12... Ne5
{[%clk 0:02:22.4]} 13. h4 {[%clk 0:02:49.6]} 13... h5 {[%clk 0:02:18.8]} 14. Bh6
{[%clk 0:02:45.2]} 14... Nc4 {[%clk 0:02:00.1]} 15. Qg5 {[%clk 0:02:38]} 15...
Qa5 {[%clk 0:01:43.3]} 16. Bxg7 {[%clk 0:02:35.6]} 16... Kxg7 {[%clk 0:01:35.9]}
17. Bxc4 {[%clk 0:02:35.8]} 17... Rc5 {[%clk 0:01:32.5]} 18. e5 {[%clk
0:02:10.3]} 18... Nh7 {[%clk 0:01:07.4]} 19. Qxe7 {[%clk 0:01:49.9]} 19... Rxc4
{[%clk 0:01:04.3]} 20. Qxd7 {[%clk 0:01:48]} 20... Rxc3 {[%clk 0:01:04.2]} 21.
bxc3 {[%clk 0:01:47.1]} 21... Qb6+ {[%clk 0:00:55]} 22. Nb3 {[%clk 0:01:45.9]}
22... dxe5 {[%clk 0:00:55.6]} 23. Qd6 {[%clk 0:01:45]} 23... Qb5 {[%clk
0:00:48.8]} 24. Rhe1 {[%clk 0:01:43.6]} 24... Re8 {[%clk 0:00:46.3]} 25. Qd7
{[%clk 0:01:41.8]} 25... Nf6 {[%clk 0:00:42.8]} 26. Qxb5 {[%clk 0:01:36.9]}
26... axb5 {[%clk 0:00:43.2]} 27. Rd6 {[%clk 0:01:34.9]} 27... Rc8 {[%clk
0:00:27.9]} 28. Rb6 {[%clk 0:01:33.6]} 28... Rc4 {[%clk 0:00:22.6]} 29. Rxb7
{[%clk 0:01:32.5]} 1-0

[Event "*** Titled Tuesday Blitz"]
[Site "Chess.com"]
[Date "2020.11.24"]
[Round "8"]
[White "03revilo"]
[Black "halldorgretar"]
[Result "0-1"]
[WhiteElo "2310"]
[BlackElo "2177"]
[TimeControl "180+1"]
[EndTime "11:44:02 PST"]
[Termination "halldorgretar won by resignation"]

1. e4 {[%clk 0:02:50.1]} 1... c5 {[%clk 0:02:59]} 2. Nf3 {[%clk 0:02:50.6]} 2...
Nc6 {[%clk 0:02:58.7]} 3. d4 {[%clk 0:02:51.5]} 3... cxd4 {[%clk 0:02:58.2]} 4.
Nxd4 {[%clk 0:02:52.4]} 4... Nf6 {[%clk 0:02:58.6]} 5. Nc3 {[%clk 0:02:50.9]}
5... e5 {[%clk 0:02:59.1]} 6. Ndb5 {[%clk 0:02:50.5]} 6... d6 {[%clk 0:02:59.5]}
7. Bd2 {[%clk 0:02:50.6]} 7... a6 {[%clk 0:02:57.7]} 8. Na3 {[%clk 0:02:50.4]}
8... b5 {[%clk 0:02:57.3]} 9. Nd5 {[%clk 0:02:49.3]} 9... Nxe4 {[%clk
0:02:44.6]} 10. Bd3 {[%clk 0:02:46.6]} 10... Nxd2 {[%clk 0:02:38.1]} 11. Qxd2
{[%clk 0:02:47.5]} 11... f5 {[%clk 0:02:23.4]} 12. O-O {[%clk 0:02:43.6]} 12...
Be7 {[%clk 0:02:18]} 13. c4 {[%clk 0:02:39.2]} 13... b4 {[%clk 0:02:01.8]} 14.
Nxb4 {[%clk 0:02:38.4]} 14... Qa5 {[%clk 0:01:56.3]} 15. Nac2 {[%clk 0:02:33.5]}
15... O-O {[%clk 0:01:30.4]} 16. Rfd1 {[%clk 0:02:14.4]} 16... Nxb4 {[%clk
0:01:22.6]} 17. Nxb4 {[%clk 0:02:15.3]} 17... Bg5 {[%clk 0:00:48.9]} 18. Qc3
{[%clk 0:01:56.3]} 18... Bb7 {[%clk 0:00:40.5]} 19. Bf1 {[%clk 0:01:42.8]} 19...
Qc5 {[%clk 0:00:36.6]} 20. Nd5 {[%clk 0:01:38.5]} 20... Rac8 {[%clk 0:00:33.1]}
21. b3 {[%clk 0:01:36.2]} 21... Bxd5 {[%clk 0:00:32]} 22. Rxd5 {[%clk
0:01:20.5]} 22... Qxd5 {[%clk 0:00:31.2]} 23. Qg3 {[%clk 0:01:21.2]} 23... Qd4
{[%clk 0:00:29.7]} 0-1

[Event "*** Titled Tuesday Blitz"]
[Site "Chess.com"]
[Date "2020.11.24"]
[Round "8"]
[White "GelmanAlexander"]
[Black "Rainmond"]
[Result "0-1"]
[WhiteElo "2583"]
[BlackElo "2781"]
[TimeControl "180+1"]
[EndTime "11:44:10 PST"]
[Termination "Rainmond won on time"]

1. d4 {[%clk 0:03:00.9]} 1... g6 {[%clk 0:02:59.4]} 2. Nc3 {[%clk 0:02:59.6]}
2... Bh6 {[%clk 0:03:00.3]} 3. Bxh6 {[%clk 0:02:56.4]} 3... Nxh6 {[%clk
0:03:00]} 4. Qd2 {[%clk 0:02:41.1]} 4... Ng8 {[%clk 0:02:59.7]} 5. e4 {[%clk
0:02:40.8]} 5... Kf8 {[%clk 0:02:59.9]} 6. O-O-O {[%clk 0:02:38.5]} 6... Kg7
{[%clk 0:03:00]} 7. h4 {[%clk 0:02:36.9]} 7... h6 {[%clk 0:02:59.8]} 8. h5
{[%clk 0:02:27.7]} 8... g5 {[%clk 0:02:59.5]} 9. f4 {[%clk 0:02:27.9]} 9... d6
{[%clk 0:02:57.1]} 10. fxg5 {[%clk 0:02:18.6]} 10... Nc6 {[%clk 0:02:57.1]} 11.
Nf3 {[%clk 0:02:08.9]} 11... Bg4 {[%clk 0:02:56]} 12. Rh4 {[%clk 0:01:43.2]}
12... Bxf3 {[%clk 0:02:55.6]} 13. gxf3 {[%clk 0:01:43.5]} 13... e5 {[%clk
0:02:56]} 14. Rg4 {[%clk 0:01:22.3]} 14... Nxd4 {[%clk 0:02:54.2]} 15. f4 {[%clk
0:01:20.2]} 15... Kf8 {[%clk 0:02:47.6]} 16. g6 {[%clk 0:01:13.2]} 16... fxg6
{[%clk 0:02:33.5]} 17. hxg6 {[%clk 0:01:13.3]} 17... Kg7 {[%clk 0:02:32.8]} 18.
Qh2 {[%clk 0:00:44.9]} 18... Nf6 {[%clk 0:02:31.4]} 19. Rg2 {[%clk 0:00:40.8]}
19... Qe7 {[%clk 0:02:30.6]} 20. Bc4 {[%clk 0:00:35.5]} 20... Raf8 {[%clk
0:02:27.7]} 21. Bf7 {[%clk 0:00:35.5]} 21... c5 {[%clk 0:02:25.6]} 22. Rf1
{[%clk 0:00:32.2]} 22... b5 {[%clk 0:02:22.5]} 23. Qh4 {[%clk 0:00:27.9]} 23...
b4 {[%clk 0:02:19.9]} 24. Nd1 {[%clk 0:00:23.4]} 24... exf4 {[%clk 0:02:15.3]}
25. Rxf4 {[%clk 0:00:19.2]} 25... Ng8 {[%clk 0:02:15.4]} 26. Qf2 {[%clk
0:00:17.1]} 26... Qe5 {[%clk 0:02:14.5]} 27. Ne3 {[%clk 0:00:17.1]} 27... Ne7
{[%clk 0:02:14.3]} 28. Ng4 {[%clk 0:00:14.9]} 28... Ne2+ {[%clk 0:02:08.8]} 29.
Qxe2 {[%clk 0:00:10.1]} 29... Qxf4+ {[%clk 0:02:09.1]} 30. Kb1 {[%clk
0:00:10.5]} 30... Nc6 {[%clk 0:02:08.9]} 31. c3 {[%clk 0:00:06.3]} 31... bxc3
{[%clk 0:02:08.5]} 32. bxc3 {[%clk 0:00:06.6]} 32... Rb8+ {[%clk 0:02:07.9]} 33.
Kc2 {[%clk 0:00:06.3]} 33... Nd4+ {[%clk 0:02:07.5]} 34. cxd4 {[%clk 0:00:06.2]}
34... cxd4 {[%clk 0:02:08.1]} 35. Kd3 {[%clk 0:00:04]} 35... Qc1 {[%clk
0:02:04.9]} 0-1

[Event "*** Titled Tuesday Blitz"]
[Site "Chess.com"]
[Date "2020.11.24"]
[Round "8"]
[White "sara_khm"]
[Black "OK97"]
[Result "0-1"]
[WhiteElo "2590"]
[BlackElo "2785"]
[TimeControl "180+1"]
[EndTime "11:44:13 PST"]
[Termination "OK97 won by resignation"]

1. d4 {[%clk 0:03:00.9]} 1... d6 {[%clk 0:02:57.9]} 2. Nf3 {[%clk 0:02:59.6]}
2... Nf6 {[%clk 0:02:58.1]} 3. g3 {[%clk 0:02:59.8]} 3... g6 {[%clk 0:02:57.7]}
4. c4 {[%clk 0:03:00]} 4... Bf5 {[%clk 0:02:56.6]} 5. Bg2 {[%clk 0:02:56.1]}
5... Bg7 {[%clk 0:02:56.4]} 6. O-O {[%clk 0:02:51.7]} 6... O-O {[%clk
0:02:56.1]} 7. Ng5 {[%clk 0:02:50]} 7... Qc8 {[%clk 0:02:50.1]} 8. e4 {[%clk
0:02:42.1]} 8... Bd7 {[%clk 0:02:49.7]} 9. Nc3 {[%clk 0:02:40.7]} 9... Nc6
{[%clk 0:02:34.9]} 10. d5 {[%clk 0:02:14.9]} 10... Ne5 {[%clk 0:02:34.2]} 11.
Qb3 {[%clk 0:01:55.7]} 11... h6 {[%clk 0:02:08.8]} 12. Nf3 {[%clk 0:01:55.3]}
12... Nxf3+ {[%clk 0:02:08.1]} 13. Bxf3 {[%clk 0:01:54.9]} 13... Bh3 {[%clk
0:02:08.1]} 14. Re1 {[%clk 0:01:52.9]} 14... Ng4 {[%clk 0:02:07.2]} 15. Nb5
{[%clk 0:01:47.8]} 15... c6 {[%clk 0:01:57.5]} 16. Nc3 {[%clk 0:01:40.5]} 16...
Bd4 {[%clk 0:01:54.9]} 17. Nd1 {[%clk 0:01:35.3]} 17... cxd5 {[%clk 0:01:34.5]}
18. exd5 {[%clk 0:01:32.2]} 18... Ne5 {[%clk 0:01:34.7]} 19. Bxh6 {[%clk
0:01:29.5]} 19... Re8 {[%clk 0:01:19.3]} 20. Be2 {[%clk 0:01:29]} 20... Qf5
{[%clk 0:01:09.3]} 21. Be3 {[%clk 0:00:43.7]} 21... Nf3+ {[%clk 0:01:04.6]} 22.
Kh1 {[%clk 0:00:34]} 22... Nxe1 {[%clk 0:01:01.3]} 23. Bxd4 {[%clk 0:00:34.2]}
0-1